[Event "III GM Brena Baja-La Palma 2022"]
[Site "La Palma"]
[Date "2022.04.10"]
[Round "3.3"]
[White "Pulvett Marin, Daniel Eduardo"]
[Black "Zwirs, Nico"]
[Result "1-0"]
[ECO "E04"]
[WhiteElo "2499"]
[BlackElo "2461"]
[Annotator "TA"]
[PlyCount "87"]
[EventDate "2022.04.01"]
[EventType "tourn"]
[EventCountry "ESP"]
[SourceTitle "playchess.com"]
[Source "ChessBase"]
[SourceQuality "1"]
[TimeControl "5400+30"]

{[%evp 10,86,36,16,19,9,12,0,11,10,10,10,7,7,15,0,15,0,0,0,0,-15,0,0,0,0,0,0,29,32,31,31,35,42,35,35,34,35,31,37,45,42,52,59,68,61,73,57,61,16,20,24,22,0,22,14,32,21,39,41,43,12,95,88,1808,-646,1622,1562,29984,-117,29985,29986,29996,29997,29997,29998,29998,29999,29999]} 1. d4 {[%emt 0:41:36]} d5 {[%emt 0:00:11]} 2. c4 {[%emt 0:00:15]} e6 {[%emt 0:00:06]} 3. Nf3 {[%emt 0:00:17]} Nf6 {[%emt 0:00:07]} 4. g3 {[%emt 0:00:16]} dxc4 {[%emt 0:00:10]} 5. Bg2 {[%emt 0:00:16]} a6 {[%emt 0:00:08]} 6. Ne5 {[%emt 0:00:56][%mdl 1024] White has compensation.} Bb4+ {[%emt 0:00:20] E04: Open Catalan: 5 Nf3.} 7. Nc3 $1 {[%emt 0:00:40] Threatens to win with Qa4+.} (7. Bd2 Qxd4 8. Bxb4 Qxe5 $15) 7... Nd5 {[%emt 0:00:21]} 8. O-O {[%emt 0:01:04]} O-O {[%emt 0:00:56] The position is equal.} 9. Ne4 {[%emt 0:01:06] now supersedes 9.Qc2.} b5 {[%emt 0:01:48]} 10. b3 {[%emt 0:01:06]} cxb3 {[%emt 0:00:40]} 11. axb3 {[%emt 0:00:03]} Bb7 {[%emt 0:00:28] [#]} 12. Bb2 $146 {[%emt 0:03:30]} ({Predecessor:} 12. Qc2 h6 13. Nd3 Nd7 14. Bb2 a5 15. Ra2 Qe7 16. Rfa1 Ra6 17. Nc3 Bxc3 18. Bxc3 Nxc3 19. Bxb7 Nxa2 20. Bxa6 {½-½ (106) Gelfand,B (2680)-Vitiugov,N (2727) Yasnaya Polyana 2021}) 12... Nd7 {[%emt 0:04:35]} 13. Nd3 {[%emt 0:01:43]} Be7 {[%emt 0:01:38]} 14. Qc2 {[%emt 0:04:42]} a5 {[%emt 0:11:13]} 15. Rfd1 {[%emt 0:20:15]} Ra6 {[%emt 0:07:35]} 16. Nec5 {[%emt 0:15:44]} Nxc5 {[%emt 0:01:07]} 17. Nxc5 {[%emt 0:02:03]} Bxc5 {[%emt 0:01:57]} 18. Qxc5 {[%emt 0:01:11]} Qd7 {[%emt 0:02:31]} 19. e4 {[%emt 0:03:07][%cal Be2e4,Be4e5][%mdl 32]} Nf6 {[%emt 0:06:33]} 20. d5 $36 {[%emt 0:00:11][%mdl 2048] White has the initiative.} (20. Ba3 b4 21. e5 Nd5 22. Bxd5 Qxd5 23. Qxd5 Bxd5 24. Bxb4 Rfa8 $15) 20... exd5 {[%emt 0:09:37]} 21. e5 {[%emt 0:00:39]} Ng4 {[%emt 0:15:10][%cal Bf6g4,Bg4h6,Bh6f5][%mdl 32]} 22. Bxd5 {[%emt 0:05:41]} Bxd5 {[%emt 0:01:00]} 23. Rxd5 {[%emt 0:00:03]} Qf5 {[%emt 0:05:36]} 24. Rad1 {[%emt 0:04:58] aiming for Rd8.} Raa8 {[%emt 0:11:56] Against Rd8} 25. h3 Nh6 {[%emt 0:07:20]} 26. Qd4 {[%cal Oe5e6] Strongly threatening e6!} (26. Qxb5 Qxh3 27. Qf1 Qe6 $15) (26. g4 {is more complex.} Nxg4 27. hxg4 Qxg4+ 28. Kf1) 26... Qe6 {[%emt 0:03:34]} 27. Rxb5 Nf5 {[%emt 0:03:25]} 28. Qd7 Qg6 {[%emt 0:06:31][%cal Of5g3]} 29. Kh2 {Threatening g4. &Bianco is more active.} ({Don't play} 29. Qxc7 Nxg3 $1 30. Kh2 Ne4 $15) 29... h5 {[%emt 0:05:30] Prevents g4.} 30. Rbd5 (30. Qxc7 Qa6 31. Qd7 Rad8 32. Qxd8 Rxd8 33. Rxd8+ Kh7) 30... c6 {[%emt 0:03:32]} 31. R5d2 (31. Rc5 $5 {[%cal Rc5c6]} Qe6 32. Bc3 $16 (32. Rxc6 Qxb3 33. Bc3 Rfd8 $11)) 31... Rad8 {[%emt 0:00:55]} 32. Qc7 Rxd2 {[%emt 0:02:34]} 33. Rxd2 Ra8 {[%emt 0:01:45]} 34. Qb7 Re8 {[%emt 0:03:21]} 35. Qd7 Rb8 {[%emt 0:00:59] [#]} (35... Qe6 $11 {remains equal.}) 36. Qa7 $1 $16 {[%csl LRa5,LRb8]} Rxb3 {[%emt 0:06:02][%mdl 8192]} (36... Rc8 $16) 37. Rd8+ Kh7 {[%emt 0:00:40] [#]} 38. Qa8 $1 {[%csl Ga8][%cal Rd8h8]} Qe6 {[%emt 0:05:05]} (38... Qxg3+ 39. fxg3) 39. Rh8+ Kg6 {[%emt 0:00:09] [#]} 40. Qg8 $1 {White mates.} Nxg3 {[%emt 0:01:35]} (40... Rxg3 41. fxg3) 41. Qh7+ Kg5 {[%emt 0:00:21]} 42. Bc1+ Kh4 {[%emt 0:00:20]} 43. fxg3+ Rxg3 {[%emt 0:00:08]} 44. Qxh5# {Weighted Error Value: White=0.14 (very precise) /Black=0.24 (precise)} 1-0

[Event "III GM Brena Baja-La Palma 2022"]
[Site "La Palma"]
[Date "2022.04.10"]
[Round "4.1"]
[White "Strikovic, Aleksa"]
[Black "Zwirs, Nico"]
[Result "1-0"]
[ECO "A13"]
[WhiteElo "2486"]
[BlackElo "2461"]
[Annotator "TA"]
[PlyCount "159"]
[EventDate "2022.04.01"]
[EventType "tourn"]
[EventCountry "ESP"]
[SourceTitle "playchess.com"]
[Source "ChessBase"]
[SourceQuality "1"]
[TimeControl "5400+30"]

{[%evp 43,159,-122,-83,-118,-102,-136,-31,-39,10,15,20,18,0,6,6,3,4,11,11,12,14,0,7,0,0,0,0,0,0,0,0,0,0,0,18,9,9,0,29,33,25,33,33,14,20,0,87,77,113,121,128,132,178,74,114,114,131,63,70,18,20,10,49,45,72,84,325,352,312,95,214,220,349,342,341,338,416,387,547,540,671,664,632,452,796,780,742,722,1094,539,2072,1690,1400,568,548,531,681,595,608,576,29980,291,187,203,1094,1039,2058,1793,29975,29976,29979,29980,29988,29989,29989,29990,29993,29989]} 1. c4 {[%emt 0:00:06]} e6 {[%emt 0:00:09]} 2. Nf3 {[%emt 0:00:40]} Nf6 {[%emt 0:00:06]} 3. b3 {[%emt 0:01:35]} d5 {[%emt 0:00:07]} 4. Bb2 {[%emt 0:00:26]} c5 {[%emt 0:00:24]} 5. cxd5 {[%emt 0:00:19]} exd5 {[%emt 0:00:02]} 6. g3 {[%emt 0:00:08]} Nc6 {[%emt 0:01:20]} 7. Bg2 {[%emt 0:00:06]} d4 {[%emt 0:00:12]} 8. O-O {[%emt 0:00:08]} Be7 {[%emt 0:00:31]} 9. e3 {[%emt 0:00:26]} O-O {[%emt 0:00:35]} 10. Na3 {[%emt 0:00:08]} Bg4 {[%emt 0:05:45]} 11. h3 {[%emt 0:00:36]} Bh5 {[%emt 0:00:38]} 12. exd4 {[%emt 0:17:50]} cxd4 {[%emt 0:01:50]} 13. Nc2 {[%emt 0:00:30]} Bc5 {[%emt 0:02:52]} 14. Nce1 {[%emt 0:02:50]} Qb6 {[%emt 0:14:16]} 15. g4 {[%emt 0:18:44]} Bg6 {[%emt 0:01:36]} 16. Nh4 {[%emt 0:01:12]} Be4 {[%emt 0:05:56]} 17. f3 {[%emt 0:07:18]} Bd5 {[%emt 0:04:19]} 18. Nd3 {[%emt 0:00:28]} Rfe8 {[%emt 0:08:19]} 19. g5 {[%emt 0:10:25]} Nd7 {[%emt 0:10:04]} 20. f4 {[%emt 0:04:40]} Bxg2 {[%emt 0:10:21]} 21. Kxg2 {[%emt 0:00:39]} Bf8 {[%emt 0:00:20]} 22. Qf3 {[%emt 0:10:23]} Nc5 {[%emt 0:03:02]} 23. Ne5 {[%emt 0:02:55]} Rad8 {[%emt 0:04:38]} 24. Ba3 {[%emt 0:10:54]} (24. Qh5 $2 Nxe5 25. fxe5 Qc7 $19) 24... Nxe5 {[%emt 0:10:46]} (24... d3 $1 $17 {...Nd4 is the strong threat.} 25. Kh1 (25. Qh5 $2 g6 $19) 25... Qa5) 25. fxe5 $15 {[%emt 0:01:35]} Qc6 {[%emt 0:00:51]} (25... Rd7 $15 {is more appropriate.} 26. Bxc5 Qxc5) 26. Qxc6 $11 {[%emt 0:00:40]} bxc6 {[%emt 0:00:02]} 27. Bxc5 {[%emt 0:00:10]} Bxc5 {[%emt 0:00:01]} 28. Nf3 {[%emt 0:00:23]} Ba3 {[%emt 0:00:07]} 29. Rae1 {[%emt 0:01:05]} a5 {[%emt 0:06:10]} 30. Re4 {[%emt 0:00:15]} c5 {[%emt 0:00:53]} 31. d3 {[%emt 0:03:41]} Bb4 {[%emt 0:02:46]} 32. Re2 {[%emt 0:02:39]} Ra8 {[%emt 0:01:42]} 33. Kg3 {[%emt 0:00:30]} a4 {[%emt 0:01:18]} 34. Rb1 {[%emt 0:00:01]} axb3 {[%emt 0:00:30]} 35. Rxb3 {[%emt 0:00:02]} Ra4 {[%emt 0:02:02]} 36. Kf4 {[%emt 0:00:10]} Rea8 {[%emt 0:00:17]} 37. Ke4 {[%emt 0:01:33]} g6 {[%emt 0:01:55]} 38. Rbb2 {[%emt 0:01:05]} Kg7 {[%emt 0:00:22]} 39. Rf2 {[%emt 0:00:28]} R8a7 {[%emt 0:01:03]} 40. Nh2 {[%emt 0:00:16]} h5 {[%emt 0:00:40]} 41. gxh6+ {[%emt 0:00:12]} Kxh6 {[%emt 0:00:01]} 42. Ng4+ {[%emt 0:00:08]} Kg7 {[%emt 0:00:15]} 43. Nf6 {[%emt 0:00:12]} Be1 {[%emt 0:01:27]} 44. Rg2 {[%emt 0:00:08]} Bh4 {[%emt 0:00:32]} (44... c4 $11) 45. Ne8+ $1 $16 {[%emt 0:00:27]} Kf8 {[%emt 0:00:17]} 46. Nd6 {[%emt 0:00:02]} Ra8 {[%emt 0:01:19]} 47. Kd5 {[%emt 0:00:24]} Be7 {[%emt 0:00:30] [#]} (47... R4a5 $16) 48. Nc4 {[%emt 0:00:29]} (48. Rgf2 $1 $18 {[%cal Rf2f7]} f6 49. Rb6 (49. exf6 Bxd6 50. Kxd6 c4 $11)) 48... Rd8+ {[%emt 0:00:17]} 49. Ke4 {[%emt 0:00:03]} Ra7 {[%emt 0:00:09]} 50. Rbf2 {[%emt 0:01:20]} (50. Rb5 $16) 50... Kg7 $14 {[%emt 0:00:07]} 51. Rf4 {[%emt 0:00:07]} (51. Rf1 $14) 51... Rh8 {[%emt 0:00:30]} 52. Rf3 {[%emt 0:00:18]} Rd7 {[%emt 0:01:16]} 53. a4 {[%emt 0:00:20]} Rh4+ {[%emt 0:00:49]} 54. Rg4 {[%emt 0:00:02]} Rxg4+ $2 {[%emt 0:00:22]} (54... Rh6 $16) 55. hxg4 $18 {[%emt 0:00:02]} Ra7 {[%emt 0:00:02]} 56. Nb2 $2 {[%emt 0:02:09]} (56. Nd6 $18 {has better winning chances.} Bxd6 57. exd6) 56... Bg5 {[%emt 0:00:35]} (56... f6 $16) 57. Rf1 $18 {[%emt 0:02:20]} Bd2 {[%emt 0:00:36]} (57... Ra6 $142 58. Kd5 Ra5) 58. Nc4 $18 {[%emt 0:00:08]} Bc3 {[%emt 0:00:39]} 59. Nd6 {[%emt 0:00:03]} c4 {[%emt 0:00:46]} 60. dxc4 {[%emt 0:00:17]} Re7 {[%emt 0:00:28]} (60... Kg8 $142 61. Rf3 Rxa4 62. Rxf7 d3) 61. Nb5 $18 {[%emt 0:01:04]} Bb2 {[%emt 0:00:42]} 62. Rb1 {[%emt 0:00:10]} Bc3 {[%emt 0:00:07]} 63. Nxd4 {[%emt 0:01:06]} f6 {[%emt 0:00:26]} (63... Ra7 $142 64. Nb5 Rxa4 65. Nxc3 Rxc4+ 66. Kd3 Rxg4) 64. Nc6 $18 {[%emt 0:00:02]} Re8 {[%emt 0:00:30]} 65. Rb5 {[%emt 0:00:18]} fxe5 {[%emt 0:00:11]} 66. g5 {[%emt 0:00:17]} (66. Rb8 $142 Rxb8 67. Nxb8) 66... Rc8 {[%emt 0:00:18]} 67. Rb6 {[%emt 0:01:35]} Ra8 {[%emt 0:01:13]} 68. Kd3 {[%emt 0:00:21]} (68. Rb7+ $142 Kf8 69. Kd3) 68... Be1 $18 {[%emt 0:00:14]} 69. Rb1 {[%emt 0:00:29]} Bh4 {[%emt 0:00:47]} 70. Rb7+ {[%emt 0:00:12]} Kf8 {[%emt 0:00:26]} 71. a5 {[%emt 0:02:07]} Bxg5 {[%emt 0:00:24]} 72. Ke4 $2 {[%emt 0:00:02]} (72. Rb8+ {mates} Rxb8 73. Nxb8 Bh4 74. a6 Bf2 75. c5 Ke8 76. a7 Bh4 77. a8=Q) 72... Bd2 $18 {[%emt 0:00:16] [#]} 73. Rb2 $1 {[%emt 0:00:43]} ({Resist} 73. Kxe5 $6 Bxa5 74. Nxa5 Rxa5+ 75. Kd6 Ra6+ 76. Kd7 Ra3 $16) ({Don't do} 73. Nxe5 Rxa5 74. c5 (74. Nxg6+ Ke8 $16) 74... Be1 $16) 73... Rc8 $2 {[%emt 0:01:01]} (73... Be1 74. Rb1 Bd2) 74. Kd5 $18 {[%emt 0:00:23]} ({Not} 74. Rxd2 Rxc6 75. Kd5 (75. Kxe5 Rxc4 76. Kd6 Ra4 $16) 75... Ra6 $16) 74... Bc3 {[%emt 0:00:13]} 75. Rb3 {[%emt 0:00:11]} Bd2 {[%emt 0:00:53]} 76. a6 {[%emt 0:00:07]} e4 {[%emt 0:00:01]} 77. a7 {[%emt 0:00:34]} e3 {[%emt 0:00:07]} 78. Rb8 {[%emt 0:00:12]} e2 {[%emt 0:00:20]} 79. Rxc8+ {[%emt 0:00:06]} Kf7 {[%emt 0:00:01]} 80. Rc7+ {[%emt 0:00:12]} 1-0

[Event "III GM Brena Baja-La Palma 2022"]
[Site "La Palma"]
[Date "2022.04.10"]
[Round "4.2"]
[White "Herrera Reyes, Jose Antonio"]
[Black "Pulvett Marin, Daniel Eduardo"]
[Result "0-1"]
[ECO "B35"]
[WhiteElo "2319"]
[BlackElo "2499"]
[Annotator "TA"]
[PlyCount "68"]
[EventDate "2022.04.01"]
[EventType "tourn"]
[EventCountry "ESP"]
[SourceTitle "playchess.com"]
[Source "ChessBase"]
[SourceQuality "1"]
[TimeControl "5400+30"]

{[%evp 20,68,7,7,48,48,47,43,43,50,43,0,33,0,3,-20,0,0,0,0,0,-24,0,-137,-136,-345,-318,-372,-392,-377,-362,-562,-579,-582,-578,-555,-551,-591,-580,-581,-566,-569,-558,-593,-593,-589,-586,-862,-833,-820,-768]} 1. e4 {[%emt 0:25:38]} c5 {[%emt 0:00:29]} 2. Nc3 {[%emt 0:00:55]} Nc6 {[%emt 0:00:35]} 3. Nf3 {[%emt 0:01:28]} g6 {[%emt 0:01:23]} 4. d4 {[%emt 0:00:42]} cxd4 {[%emt 0:00:08]} 5. Nxd4 {[%emt 0:00:07]} Bg7 {[%emt 0:00:11]} 6. Be3 {[%emt 0:00:18]} Nf6 {[%emt 0:00:21]} 7. Bc4 {[%emt 0:00:40]} O-O {[%emt 0:01:24]} 8. Bb3 {[%emt 0:00:39]} a5 {[%emt 0:01:46]} 9. a4 {[%emt 0:05:11]} Ng4 {[%emt 0:04:11]} 10. Qxg4 {[%emt 0:06:14]} Nxd4 {[%emt 0:00:04]} 11. Qh4 {[%emt 0:00:47]} e6 {[%emt 0:07:57] Against Nd5. B35: Sicilian: Accelerated Dragon with 5 Nc3: main line.} 12. Qxd8 {[%emt 0:04:46]} Rxd8 {[%emt 0:00:04]} 13. O-O-O {[%emt 0:04:56]} Nxb3+ {[%emt 0:00:11] White is slightly better.} 14. cxb3 {[%emt 0:00:03]} d5 {[%emt 0:17:25] [#]} 15. f4 $146 {[%emt 0:04:24]} ({Predecessor:} 15. Bd4 dxe4 16. Bxg7 Rxd1+ 17. Rxd1 Kxg7 18. Nxe4 b6 19. Nd6 Ba6 20. Kc2 Kf8 21. b4 axb4 {½-½ (32) Perenyi,B (2370)-Radosavljevic,S (2280) Balatonbereny 1988}) 15... Ra6 {[%emt 0:08:59]} (15... Bd7 $5 {[%cal Rd8c8]}) 16. e5 {[%emt 0:07:47]} ({Much weaker is} 16. exd5 exd5 17. Rxd5 Rxd5 18. Nxd5 Rc6+ 19. Kb1 Bf5+ 20. Ka2 Rc2 $11) 16... Bd7 {[%emt 0:00:37]} 17. Kb1 {[%emt 0:04:42]} Bf8 {[%emt 0:02:41]} 18. h4 {[%emt 0:10:19][%cal Bh2h4,Bh4h5][%mdl 32]} b6 {[%emt 0:15:53]} 19. h5 {[%emt 0:03:45]} Bc5 {[%emt 0:00:41]} 20. Bc1 {[%emt 0:00:18]} Raa8 {[%emt 0:01:48]} 21. f5 {[%emt 0:22:07]} (21. hxg6 $11 {remains equal.} fxg6 22. Ne2) 21... gxf5 $17 {[%emt 0:04:19][%cal Of7f6,Bg6f5,Bf5g4][%mdl 32] Strongly threatening ...f6!} 22. g4 $2 {[%emt 0:00:10] [#] Now White is beyond hope.} (22. Bg5 $17) 22... fxg4 $19 {[%emt 0:02:58]} 23. Rh4 {[%emt 0:02:46]} f5 {[%emt 0:00:10]} 24. exf6 {[%emt 0:00:41]} e5 {[%emt 0:00:06]} 25. f7+ {[%emt 0:04:48]} (25. Rxd5 $142 Bf5+ 26. Ka2) 25... Kxf7 {[%emt 0:01:28] Black is clearly winning.} 26. Rf1+ {[%emt 0:00:09]} Ke6 {[%emt 0:00:12] White must now prevent ...Rg8.} 27. Rxg4 {[%emt 0:00:09]} Rg8 {[%emt 0:00:12] Prevents Rg7.} 28. Rh4 {[%emt 0:10:57]} Raf8 {[%emt 0:00:18]} 29. Rd1 {[%emt 0:01:58]} Rg1 {[%emt 0:00:47]} 30. Rxg1 {[%emt 0:01:26]} Bxg1 {[%emt 0:00:05]} 31. Rg4 {[%emt 0:00:11]} Rf1 {[%emt 0:02:51]} 32. Kc2 {[%emt 0:00:29]} Kf7 {[%emt 0:08:22] Inhibits Rg7+.} 33. Rg3 {[%emt 0:00:55]} Bf5+ {[%emt 0:01:20]} 34. Kd2 {[%emt 0:00:03]} Bh2 {[%emt 0:01:53] Weighted Error Value: White=0.54/Black=0.06 (flawless)} 0-1

[Event "III GM Brena Baja-La Palma 2022"]
[Site "La Palma"]
[Date "2022.04.10"]
[Round "4.3"]
[White "Kurajica, Bojan"]
[Black "Petkov, Vladimir"]
[Result "1/2-1/2"]
[ECO "E11"]
[WhiteElo "2519"]
[BlackElo "2491"]
[Annotator "TA"]
[PlyCount "23"]
[EventDate "2022.04.01"]
[EventType "tourn"]
[EventCountry "ESP"]
[SourceTitle "playchess.com"]
[Source "ChessBase"]
[SourceQuality "1"]
[TimeControl "5400+30"]

{[%evp 12,23,38,29,43,22,25,31,41,40,44,43,38,50]} 1. d4 {[%emt 0:00:30]} Nf6 {[%emt 0:00:30]} 2. c4 {[%emt 0:00:30]} e6 {[%emt 0:00:30]} 3. Nf3 {[%emt 0:00:26]} Bb4+ {[%emt 0:01:54]} 4. Bd2 {[%emt 0:01:23]} Qe7 {[%emt 0:01:37]} 5. g3 {[%emt 0:06:00]} Nc6 {[%emt 0:03:28]} 6. a3 {[%emt 0:00:22]} Bxd2+ {[%emt 0:01:53]} 7. Qxd2 $1 {[%emt 0:01:24] 7.Qxd2 is better than 7.Nbxd2.} O-O {[%emt 0:05:05] E11: Bogo-Indian.} 8. Bg2 {[%emt 0:02:34]} d5 {[%emt 0:05:30]} 9. O-O {[%emt 0:03:12]} a5 {[%emt 0:02:15] White is slightly better.} 10. Qc2 {[%emt 0:01:19]} Rd8 {[%emt 0:04:18] [#]} 11. cxd5 $146 {[%emt 0:04:18]} ({Predecessor:} 11. Nbd2 a4 12. Rfc1 Bd7 13. e3 Rdc8 14. Ne5 Na5 15. c5 Be8 16. Nd3 Bb5 17. Bf1 {½-½ (47) Ton That Nhu,T (2144)-Torre,E (2496) Ho Chi Minh City 2012}) 11... exd5 {[%emt 0:00:39]} 12. Nc3 {[%emt 0:00:10] White took control after the opening.  Weighted Error Value: White=0.05 (flawless) /Black=0.07 (flawless)} 1/2-1/2

[Event "III GM Brena Baja-La Palma 2022"]
[Site "La Palma"]
[Date "2022.04.11"]
[Round "5.1"]
[White "Petkov, Vladimir"]
[Black "Strikovic, Aleksa"]
[Result "1/2-1/2"]
[ECO "D36"]
[WhiteElo "2491"]
[BlackElo "2486"]
[Annotator "TA"]
[PlyCount "50"]
[EventDate "2022.04.01"]
[EventType "tourn"]
[EventCountry "ESP"]
[SourceTitle "playchess.com"]
[Source "ChessBase"]
[SourceQuality "1"]
[TimeControl "5400+30"]

{[%evp 25,26,-8,-7]} 1. d4 {[%emt 0:00:14]} d5 {[%emt 0:00:08]} 2. c4 {[%emt 0:00:22]} e6 {[%emt 0:00:14]} 3. Nc3 {[%emt 0:00:25]} Nf6 {[%emt 0:00:16]} 4. cxd5 {[%emt 0:00:31]} exd5 {[%emt 0:00:09]} 5. Bg5 {[%emt 0:00:33]} Nbd7 {[%emt 0:00:41][%cal Bb8d7,Bd7f8,Bf8e6][%mdl 32]} 6. Qc2 {[%emt 0:01:01]} c6 {[%emt 0:00:11]} 7. e3 {[%emt 0:00:21]} Be7 {[%emt 0:00:26]} 8. Bd3 {[%emt 0:00:38]} O-O {[%emt 0:00:56]} 9. Nf3 {[%emt 0:00:34]} Re8 {[%emt 0:01:56]} 10. h3 {[%emt 0:00:47]} Nf8 {[%emt 0:03:52]} 11. O-O {[%emt 0:01:49]} g6 {[%emt 0:01:08]} 12. Bxf6 {[%emt 0:04:49] 12.Ne5 is a critical line.} Bxf6 {[%emt 0:00:07]} 13. b4 {[%emt 0:00:05]} Ne6 {[%emt 0:00:32] [#]} {Predecessor:} 14. Na4 $146 {D36: Queen's Gambit Declined: Exchange Variation: Main line (5 Bg5 c6 6 Qc2).} a6 15. Rab1 Be7 16. Nc5 Bd6 17. Nxe6 Bxe6 18. a4 Qf6 19. Nd2 Qe7 20. Qb2 Bxh3 21. gxh3 Qg5+ 22. Kh1 Qh4 23. Kg2 Qg5+ 24. Kh1 Qh4 25. Kg2 Qg5+ {½-½ (25) Prusikin,M (2538)-Bruzon Batista,L (2622) Dresden 2008} 1/2-1/2

[Event "III GM Brena Baja-La Palma 2022"]
[Site "La Palma"]
[Date "2022.04.11"]
[Round "5.2"]
[White "Pulvett Marin, Daniel Eduardo"]
[Black "Kurajica, Bojan"]
[Result "1/2-1/2"]
[ECO "E11"]
[WhiteElo "2499"]
[BlackElo "2519"]
[Annotator "TA"]
[PlyCount "88"]
[EventDate "2022.04.01"]
[EventType "tourn"]
[EventCountry "ESP"]
[SourceTitle "playchess.com"]
[Source "ChessBase"]
[SourceQuality "1"]
[TimeControl "5400+30"]

{[%evp 13,88,45,45,28,27,32,28,13,20,0,0,-68,-86,-86,-91,-87,-61,-101,-94,-91,-98,-200,-210,-192,-135,-136,-112,-131,-124,-122,-54,-61,-61,-60,-48,-111,-85,-242,-242,-320,-340,-431,-246,-239,-199,-212,-227,-220,0,0,0,0,0,0,0,0,0,0,0,0,0,-8,70,15,52,51,72,59,77,17,37,39,34,0,27,0,49]} 1. d4 {[%emt 0:21:26]} Nf6 {[%emt 0:00:06]} 2. c4 {[%emt 0:00:15]} e6 {[%emt 0:00:08]} 3. Nf3 {[%emt 0:00:11]} Bb4+ {[%emt 0:00:11]} 4. Nbd2 {[%emt 0:00:09]} d5 {[%emt 0:00:28]} 5. Qa4+ {[%emt 0:00:31]} Nc6 {[%emt 0:00:07]} 6. a3 {[%emt 0:00:08]} Bxd2+ {[%emt 0:00:16]} 7. Bxd2 {[%emt 0:00:04]} Ne4 {[%emt 0:01:12]} 8. Bf4 {[%emt 0:00:28] E11: Bogo-Indian.} g5 {[%emt 0:09:14]} 9. Be3 {[%emt 0:01:17]} f5 {[%emt 0:13:03]} 10. g3 $1 {[%emt 0:00:27] [#] Prevents f4. White has an edge.} Bd7 $146 {[%emt 0:09:52][%cal Bc8d7,Bd7e8,Be8g6][%mdl 32]} ({Predecessor:} 10... O-O 11. Rd1 Kh8 12. Bg2 f4 13. Bc1 g4 14. cxd5 exd5 15. Ne5 f3 16. exf3 gxf3 17. Bxf3 Nxe5 18. dxe5 {1-0 (63) Ivanchuk,V (2764)-Short,N (2658) Caleta 2011}) 11. Qc2 {[%emt 0:02:58]} Qf6 {[%emt 0:02:14]} 12. Rd1 {[%emt 0:02:21]} (12. cxd5 $11 exd5 13. h4) 12... f4 $15 {[%emt 0:04:31]} 13. gxf4 {[%emt 0:00:06]} gxf4 {[%emt 0:00:07]} 14. Bc1 {[%emt 0:00:20]} O-O-O {[%emt 0:02:42]} 15. h4 {[%emt 0:05:03]} Be8 {[%emt 0:02:30]} 16. b4 {[%emt 0:34:14]} Bg6 {[%emt 0:02:22][%cal Oe4f2] And now ...Nxf2! would win.} 17. b5 {[%emt 0:07:15]} (17. Rg1 $17) 17... Na5 $1 $19 {[%emt 0:02:52][%cal Oe4f2]} (17... Nxf2 18. Qa4 Nxd4 19. Rxd4 (19. Kxf2 Bc2 $15) 19... Nxh1 20. Bxf4 $11) 18. Qa4 {[#]} b6 $40 {[%mdl 128] aiming for ...Nc3. White is in trouble.} ({Inferior is} 18... Nxc4 19. h5 $15) 19. h5 Be8 {[%emt 0:28:36]} 20. Qb4 {[%emt 0:10:38] Prevents Nc3.} Nxc4 {[%emt 0:02:34]} 21. Rh4 {[%emt 0:01:14]} Qf8 {[%emt 0:01:01]} ({Black should try} 21... Ncd6 $17 22. Rxf4 Qe7) 22. Bh3 $15 Qxb4+ 23. axb4 Bxb5 {[%emt 0:04:57]} 24. Bxe6+ {[%emt 0:02:30]} ({White should play} 24. Bxf4 $15 Bd7 25. Rc1) 24... Kb7 {[%emt 0:00:11]} 25. Rxf4 $2 {[%emt 0:00:40]} (25. Bxf4 $17 Nc3 26. e3) 25... Rhe8 $19 {[%emt 0:04:21]} 26. Bf7 {[%emt 0:02:56]} Re7 {[%emt 0:00:07]} 27. Kf1 {[%emt 0:02:34]} c6 {[%emt 0:08:04]} (27... Rdd7 $142 28. Bg8 Nc3) 28. h6 {[%emt 0:03:02]} Rd6 {[%emt 0:04:03]} 29. Re1 {[%emt 0:00:33]} Rxh6 {[%emt 0:02:06]} 30. Kg2 Nc3 $2 {[%emt 0:10:38]} (30... Kc7 $19 {Hoping for ...a5.} 31. Rf5 {[#]} Ned6 $1 {[%mdl 512]} 32. Bxh6 Nxf5 33. Bf4+ Ncd6) 31. Rf5 $11 Nd6 {[%emt 0:01:37] Pair of Knights!} 32. Re5 {[%emt 0:02:21]} Rxf7 {[%emt 0:00:39]} 33. Bxh6 {[%emt 0:00:07]} Nde4 {[%emt 0:00:17]} 34. Be3 {[%emt 0:00:31]} Bxe2 {[%emt 0:00:49]} 35. Nh4 {[%emt 0:01:24] Black must now prevent f3.} Bd3 {[%emt 0:00:40]} 36. f3 {[%emt 0:02:46]} Nd6 {[%emt 0:00:08]} 37. Bd2 {[%emt 0:00:48]} Nb1 {[%emt 0:01:01]} (37... Ncb5 $11) 38. Re7+ {[%emt 0:00:10]} (38. Bh6 $14) 38... Ka6 {[%emt 0:00:05] ...Rxe7 is the strong threat.} 39. Rxf7 {[%emt 0:00:20]} Nxf7 {[%emt 0:00:04]} 40. Bf4 {[%emt 0:00:04] Strongly threatening Rd1.} Nh8 {[%emt 0:00:11]} 41. Re3 {[%emt 0:01:26]} (41. Rd1 $16 Ng6 42. Bg5 (42. Nxg6 Bxg6 43. Bb8 Kb5 $11) 42... Nxh4+ 43. Bxh4) 41... Bc2 {[%emt 0:00:38]} 42. Re2 {[%emt 0:00:02][%mdl 1024] White has compensation.} Bd3 {[%emt 0:00:08]} 43. Re3 {[%emt 0:00:02]} Bc2 {[%emt 0:00:03]} 44. Re2 {[%emt 0:00:56]} Bd3 $1 {[%emt 0:00:05] White happily takes the draw.  Weighted Error Value: White=0.23 (precise) /Black=0.21 (precise)} 1/2-1/2